[Event "*** Titled Tuesday 3|2 Blitz"]
[Site "Chess.com"]
[Date "2017.05.02"]
[Round "5"]
[White "Msb2"]
[Black "SCIM"]
[Result "1-0"]
[WhiteElo "2555"]
[BlackElo "2384"]
[TimeControl "180+2"]
[EndTime "14:06:39 PDT"]
[Termination "Msb2 won on time"]

1. d4 {[%clk 0:03:02]} 1... Nf6 {[%clk 0:02:58.7]} 2. c4 {[%clk 0:03:02.7]} 2...
g6 {[%clk 0:02:57.5]} 3. Nc3 {[%clk 0:03:03.7]} 3... d5 {[%clk 0:02:57.2]} 4.
Bg5 {[%clk 0:03:00.9]} 4... Bg7 {[%clk 0:02:55.9]} 5. Bxf6 {[%clk 0:03:01.8]}
5... Bxf6 {[%clk 0:02:56.3]} 6. cxd5 {[%clk 0:03:03.4]} 6... c6 {[%clk
0:02:54.6]} 7. e4 {[%clk 0:03:01.2]} 7... Bg7 {[%clk 0:02:51.9]} 8. Bc4 {[%clk
0:02:58.3]} 8... b5 {[%clk 0:02:34.3]} 9. Bb3 {[%clk 0:02:58.8]} 9... O-O {[%clk
0:02:29.8]} 10. e5 {[%clk 0:02:59.7]} 10... b4 {[%clk 0:02:29.1]} 11. Nce2
{[%clk 0:03:00.7]} 11... cxd5 {[%clk 0:02:28.3]} 12. h4 {[%clk 0:02:58.8]} 12...
f6 {[%clk 0:02:23.1]} 13. h5 {[%clk 0:02:02.6]} 13... fxe5 {[%clk 0:02:21.6]}
14. dxe5 {[%clk 0:02:03.3]} 14... e6 {[%clk 0:02:07.4]} 15. hxg6 {[%clk
0:02:04.1]} 15... h6 {[%clk 0:01:50.6]} 16. Nf3 {[%clk 0:02:02.3]} 16... Nc6
{[%clk 0:01:15.8]} 17. Qd2 {[%clk 0:02:02.4]} 17... Rxf3 {[%clk 0:01:07.4]} 18.
gxf3 {[%clk 0:02:04.3]} 18... Nxe5 {[%clk 0:01:07.3]} 19. Nd4 {[%clk 0:02:02.5]}
19... Qb6 {[%clk 0:01:02]} 20. O-O-O {[%clk 0:01:56.6]} 20... Ba6 {[%clk
0:01:00.3]} 21. Qe3 {[%clk 0:01:02.3]} 21... Bd3 {[%clk 0:00:38.2]} 22. Rxd3
{[%clk 0:01:02]} 22... Nxd3+ {[%clk 0:00:37.8]} 23. Qxd3 {[%clk 0:01:03.9]}
23... Qxd4 {[%clk 0:00:34.7]} 24. Qxd4 {[%clk 0:01:03.6]} 24... Bxd4 {[%clk
0:00:34.9]} 25. Rxh6 {[%clk 0:01:05.3]} 25... Kg7 {[%clk 0:00:30.5]} 26. Rh7+
{[%clk 0:00:44.1]} 26... Kxg6 {[%clk 0:00:31.1]} 27. Bc2+ {[%clk 0:00:46]} 27...
Kf6 {[%clk 0:00:32]} 28. Rh6+ {[%clk 0:00:46.8]} 28... Kg7 {[%clk 0:00:31.9]}
29. Rxe6 {[%clk 0:00:47.1]} 29... Bxf2 {[%clk 0:00:29.6]} 30. Kd2 {[%clk
0:00:45.4]} 30... Bd4 {[%clk 0:00:26.8]} 31. b3 {[%clk 0:00:45.6]} 31... Rc8
{[%clk 0:00:26.5]} 32. Rd6 {[%clk 0:00:44.1]} 32... Bc3+ {[%clk 0:00:21.4]} 33.
Kd3 {[%clk 0:00:34.3]} 33... Be5 {[%clk 0:00:21.1]} 34. Rxd5 {[%clk 0:00:33.9]}
34... Rc3+ {[%clk 0:00:21.5]} 35. Kd2 {[%clk 0:00:32.7]} 35... Bf4+ {[%clk
0:00:21]} 36. Kd1 {[%clk 0:00:33.2]} 36... Rxf3 {[%clk 0:00:19.6]} 37. Bd3
{[%clk 0:00:34.6]} 37... Rf2 {[%clk 0:00:15.6]} 38. Be2 {[%clk 0:00:35.7]} 38...
Rh2 {[%clk 0:00:14.2]} 39. Rd4 {[%clk 0:00:36.1]} 39... Rh1+ {[%clk 0:00:12.6]}
40. Kc2 {[%clk 0:00:37.5]} 40... Rc1+ {[%clk 0:00:13.2]} 41. Kd3 {[%clk
0:00:38.8]} 41... Rc3+ {[%clk 0:00:13.8]} 42. Ke4 {[%clk 0:00:40.3]} 42... Bh6
{[%clk 0:00:13.2]} 43. Bd3 {[%clk 0:00:35.7]} 43... a5 {[%clk 0:00:13.4]} 44.
Rd5 {[%clk 0:00:37.1]} 44... a4 {[%clk 0:00:13.8]} 45. Bc4 {[%clk 0:00:24.5]}
45... Re3+ {[%clk 0:00:14.2]} 46. Kd4 {[%clk 0:00:25.6]} 46... a3 {[%clk
0:00:13.6]} 47. Kc5 {[%clk 0:00:25.7]} 47... Kh7 {[%clk 0:00:09.4]} 48. Kxb4
{[%clk 0:00:26.9]} 48... Bf8+ {[%clk 0:00:10]} 49. Ka4 {[%clk 0:00:28.5]} 49...
Rh3 {[%clk 0:00:09.5]} 50. Bd3+ {[%clk 0:00:29.2]} 50... Kg7 {[%clk 0:00:09.1]}
51. b4 {[%clk 0:00:28.5]} 51... Rh4 {[%clk 0:00:09.7]} 52. Rb5 {[%clk
0:00:29.7]} 52... Rd4 {[%clk 0:00:10.3]} 53. Bc2 {[%clk 0:00:30]} 53... Rd2
{[%clk 0:00:10.4]} 54. Bb3 {[%clk 0:00:31.2]} 54... Kf6 {[%clk 0:00:10.4]} 55.
Kxa3 {[%clk 0:00:32.5]} 55... Ke7 {[%clk 0:00:10.1]} 56. Ka4 {[%clk 0:00:33.9]}
56... Kd6 {[%clk 0:00:09.9]} 57. a3 {[%clk 0:00:35.3]} 57... Bg7 {[%clk
0:00:09.2]} 58. Rb7 {[%clk 0:00:35]} 58... Be5 {[%clk 0:00:08.1]} 59. Rb6+
{[%clk 0:00:35.1]} 59... Kc7 {[%clk 0:00:08.6]} 60. Re6 {[%clk 0:00:36.2]} 60...
Bd6 {[%clk 0:00:08.6]} 61. Rh6 {[%clk 0:00:34.5]} 61... Rd4 {[%clk 0:00:09]} 62.
Kb5 {[%clk 0:00:35.1]} 62... Rd3 {[%clk 0:00:08.9]} 63. Rh7+ {[%clk 0:00:35]}
63... Kb8 {[%clk 0:00:09.3]} 64. Kc4 {[%clk 0:00:33.3]} 64... Rd2 {[%clk
0:00:09]} 65. a4 {[%clk 0:00:33.1]} 65... Rg2 {[%clk 0:00:07.6]} 66. Kb5 {[%clk
0:00:27.4]} 66... Rg5+ {[%clk 0:00:05]} 67. Kb6 {[%clk 0:00:28.7]} 1-0

[Event "*** Titled Tuesday 3|2 Blitz"]
[Site "Chess.com"]
[Date "2017.05.02"]
[Round "5"]
[White "TricksOnly"]
[Black "stepanosinovsky"]
[Result "1-0"]
[WhiteElo "2436"]
[BlackElo "2233"]
[TimeControl "180+2"]
[EndTime "14:06:44 PDT"]
[Termination "TricksOnly won by resignation"]

1. e4 {[%clk 0:03:02]} 1... e5 {[%clk 0:03:00.2]} 2. Nf3 {[%clk 0:03:02.3]} 2...
Nc6 {[%clk 0:03:01]} 3. Nc3 {[%clk 0:03:03.1]} 3... Nf6 {[%clk 0:03:00]} 4. a3
{[%clk 0:03:03.6]} 4... d6 {[%clk 0:02:41.2]} 5. d4 {[%clk 0:03:03]} 5... exd4
{[%clk 0:02:33.7]} 6. Nxd4 {[%clk 0:03:04.9]} 6... Nxd4 {[%clk 0:02:25.1]} 7.
Qxd4 {[%clk 0:03:05.6]} 7... Be7 {[%clk 0:02:24]} 8. Be2 {[%clk 0:03:00.6]} 8...
O-O {[%clk 0:02:24.4]} 9. O-O {[%clk 0:02:50.5]} 9... c6 {[%clk 0:02:23.6]} 10.
Bf4 {[%clk 0:02:40.6]} 10... Qb6 {[%clk 0:02:04.4]} 11. Qd3 {[%clk 0:02:17.1]}
11... Rd8 {[%clk 0:02:02.8]} 12. Rfd1 {[%clk 0:01:52.6]} 12... Ng4 {[%clk
0:01:55.5]} 13. Qg3 {[%clk 0:01:38.8]} 13... h5 {[%clk 0:01:39.7]} 14. h3 {[%clk
0:00:58.1]} 14... h4 {[%clk 0:01:30.6]} 15. Qf3 {[%clk 0:00:58.7]} 15... Ne5
{[%clk 0:01:30.5]} 16. Bxe5 {[%clk 0:00:58.7]} 16... dxe5 {[%clk 0:01:30.8]} 17.
Bc4 {[%clk 0:00:58.8]} 17... Bf6 {[%clk 0:01:24]} 18. Rxd8+ {[%clk 0:00:56.3]}
18... Qxd8 {[%clk 0:01:25]} 19. Rd1 {[%clk 0:00:50.8]} 19... Qe7 {[%clk
0:01:18.4]} 20. Qd3 {[%clk 0:00:48.5]} 20... g6 {[%clk 0:01:07.7]} 21. a4 {[%clk
0:00:47.1]} 21... Kg7 {[%clk 0:01:05.7]} 22. Bb3 {[%clk 0:00:44.4]} 22... Bg5
{[%clk 0:00:58.9]} 23. Nb1 {[%clk 0:00:34.4]} 23... Bf6 {[%clk 0:00:25.4]} 24.
Nd2 {[%clk 0:00:31.4]} 24... Bd7 {[%clk 0:00:25.6]} 25. Nf1 {[%clk 0:00:27.7]}
25... Rd8 {[%clk 0:00:25.4]} 26. Ne3 {[%clk 0:00:26]} 26... Bc8 {[%clk 0:00:25]}
27. Qxd8 {[%clk 0:00:24]} 27... Qxd8 {[%clk 0:00:26.9]} 28. Rxd8 {[%clk
0:00:25.9]} 28... Bxd8 {[%clk 0:00:28.8]} 29. Kf1 {[%clk 0:00:17.7]} 29... f5
{[%clk 0:00:28.1]} 30. exf5 {[%clk 0:00:17.4]} 30... gxf5 {[%clk 0:00:27.9]} 31.
c3 {[%clk 0:00:18.1]} 31... Kf6 {[%clk 0:00:26.2]} 32. Bc2 {[%clk 0:00:17.7]}
32... Be7 {[%clk 0:00:23.4]} 33. Ke2 {[%clk 0:00:17.6]} 33... Be6 {[%clk
0:00:23.9]} 34. Bd3 {[%clk 0:00:14]} 34... a6 {[%clk 0:00:20.1]} 35. Bc4 {[%clk
0:00:14.3]} 35... Bc8 {[%clk 0:00:19.7]} 36. Bb3 {[%clk 0:00:14.5]} 36... b5
{[%clk 0:00:20.5]} 37. axb5 {[%clk 0:00:14.8]} 37... axb5 {[%clk 0:00:19.7]} 38.
Nc2 {[%clk 0:00:11.9]} 38... Bc5 {[%clk 0:00:19.2]} 39. Ne1 {[%clk 0:00:10.2]}
39... e4 {[%clk 0:00:19.3]} 40. Nc2 {[%clk 0:00:10.6]} 40... Ke5 {[%clk
0:00:20.1]} 41. Ne3 {[%clk 0:00:10.3]} 41... Bb6 {[%clk 0:00:19.8]} 42. g3
{[%clk 0:00:07.5]} 42... hxg3 {[%clk 0:00:17.9]} 43. fxg3 {[%clk 0:00:09.4]}
43... Bd7 {[%clk 0:00:17.9]} 44. h4 {[%clk 0:00:09.3]} 44... Be8 {[%clk
0:00:18.9]} 45. Ng2 {[%clk 0:00:10.1]} 45... Bh5+ {[%clk 0:00:19.3]} 46. Ke1
{[%clk 0:00:11.2]} 46... Bf3 {[%clk 0:00:17.9]} 47. Nf4 {[%clk 0:00:11.8]} 47...
Be3 {[%clk 0:00:19.4]} 48. Ng6+ {[%clk 0:00:10.9]} 48... Kf6 {[%clk 0:00:20]}
49. Nf4 {[%clk 0:00:11.9]} 49... Bxf4 {[%clk 0:00:19.8]} 50. gxf4 {[%clk
0:00:12.4]} 50... Kg6 {[%clk 0:00:20.5]} 51. Kf2 {[%clk 0:00:13.1]} 51... Kh5
{[%clk 0:00:21.2]} 52. Kg3 {[%clk 0:00:13.3]} 52... Kg6 {[%clk 0:00:22.1]} 53.
Be6 {[%clk 0:00:12.9]} 53... c5 {[%clk 0:00:22.5]} 54. b4 {[%clk 0:00:12.7]}
54... cxb4 {[%clk 0:00:21.9]} 55. cxb4 {[%clk 0:00:14.6]} 55... Be2 {[%clk
0:00:22.9]} 56. Kf2 {[%clk 0:00:15.4]} 56... Bd3 {[%clk 0:00:20.7]} 57. Ke3
{[%clk 0:00:15.2]} 57... Bf1 {[%clk 0:00:20.2]} 58. Bd7 {[%clk 0:00:14.7]} 58...
Bh3 {[%clk 0:00:19.8]} 59. Bxb5 {[%clk 0:00:14]} 59... Kh5 {[%clk 0:00:20.8]}
60. Be2+ {[%clk 0:00:14]} 60... Kxh4 {[%clk 0:00:21.8]} 61. b5 {[%clk 0:00:15]}
61... Bg4 {[%clk 0:00:21.1]} 62. b6 {[%clk 0:00:14.7]} 62... Bxe2 {[%clk
0:00:21.2]} 63. Kxe2 {[%clk 0:00:15.1]} 63... Kg3 {[%clk 0:00:23.1]} 64. Ke3
{[%clk 0:00:15.7]} 1-0

[Event "*** Titled Tuesday 3|2 Blitz"]
[Site "Chess.com"]
[Date "2017.05.02"]
[Round "5"]
[White "Vrolijk"]
[Black "NewBornNow"]
[Result "1/2-1/2"]
[WhiteElo "2332"]
[BlackElo "2552"]
[TimeControl "180+2"]
[EndTime "14:07:22 PDT"]
[Termination "Game drawn by repetition"]

1. d4 {[%clk 0:03:02]} 1... d6 {[%clk 0:02:57.9]} 2. c4 {[%clk 0:02:58.3]} 2...
e5 {[%clk 0:02:58.2]} 3. Nc3 {[%clk 0:02:59.3]} 3... exd4 {[%clk 0:02:59]} 4.
Qxd4 {[%clk 0:03:01.2]} 4... Nc6 {[%clk 0:03:00.2]} 5. Qd2 {[%clk 0:03:02]} 5...
Nf6 {[%clk 0:03:01.3]} 6. b3 {[%clk 0:03:02.1]} 6... g6 {[%clk 0:03:01.5]} 7.
Bb2 {[%clk 0:03:02.3]} 7... Bg7 {[%clk 0:03:02.6]} 8. g3 {[%clk 0:03:03.9]} 8...
O-O {[%clk 0:03:03]} 9. Bg2 {[%clk 0:03:05.5]} 9... Re8 {[%clk 0:03:02.6]} 10.
Nf3 {[%clk 0:03:03.2]} 10... a5 {[%clk 0:03:02.9]} 11. O-O {[%clk 0:03:03]}
11... Bf5 {[%clk 0:03:03.8]} 12. Rfe1 {[%clk 0:02:52.5]} 12... Ne4 {[%clk
0:03:04.5]} 13. Nxe4 {[%clk 0:02:51.4]} 13... Bxe4 {[%clk 0:03:05.3]} 14. Bxg7
{[%clk 0:02:51.7]} 14... Kxg7 {[%clk 0:03:06.4]} 15. Rad1 {[%clk 0:02:50.4]}
15... Qf6 {[%clk 0:03:05.3]} 16. Nd4 {[%clk 0:02:36.2]} 16... Bxg2 {[%clk
0:03:01.2]} 17. Kxg2 {[%clk 0:02:38.1]} 17... Nxd4 {[%clk 0:02:58.8]} 18. Qxd4
{[%clk 0:02:37.6]} 18... Qxd4 {[%clk 0:02:59.5]} 19. Rxd4 {[%clk 0:02:39.5]}
19... a4 {[%clk 0:03:00.2]} 20. b4 {[%clk 0:02:38.7]} 20... a3 {[%clk
0:03:01.2]} 21. e3 {[%clk 0:02:37.4]} 21... Ra4 {[%clk 0:03:00.8]} 22. Rb1
{[%clk 0:02:37.2]} 22... Re5 {[%clk 0:02:46.6]} 23. Rb3 {[%clk 0:02:28.6]} 23...
Kf6 {[%clk 0:02:40.6]} 24. f4 {[%clk 0:02:27]} 24... Re8 {[%clk 0:02:39.5]} 25.
Kf3 {[%clk 0:02:26.7]} 25... Rea8 {[%clk 0:02:33.3]} 26. c5 {[%clk 0:02:11.5]}
26... Ke7 {[%clk 0:02:18.9]} 27. cxd6+ {[%clk 0:02:10.4]} 27... cxd6 {[%clk
0:02:19.3]} 28. Rc3 {[%clk 0:02:11]} 28... Rd8 {[%clk 0:02:09.6]} 29. Re4+
{[%clk 0:02:01.3]} 29... Kf6 {[%clk 0:02:06.9]} 30. Rc7 {[%clk 0:01:59]} 30...
b5 {[%clk 0:01:55.5]} 31. Rb7 {[%clk 0:01:49.5]} 31... Rc8 {[%clk 0:01:52.2]}
32. g4 {[%clk 0:01:21.9]} 32... d5 {[%clk 0:01:42.4]} 33. g5+ {[%clk 0:01:12.9]}
33... Kg7 {[%clk 0:01:38.9]} 34. Rd4 {[%clk 0:01:13.6]} 34... Raa8 {[%clk
0:01:20.9]} 35. Rd2 {[%clk 0:00:42.9]} 35... Rc3 {[%clk 0:01:21.4]} 36. Rxd5
{[%clk 0:00:31.9]} 36... Re8 {[%clk 0:01:15.4]} 37. Re5 {[%clk 0:00:31.5]} 37...
Rxe5 {[%clk 0:01:16.1]} 38. fxe5 {[%clk 0:00:33.4]} 38... Kf8 {[%clk 0:01:16.7]}
39. Rxb5 {[%clk 0:00:32.4]} 39... Rc2 {[%clk 0:01:17.4]} 40. Rb7 {[%clk
0:00:33.8]} 40... Rxa2 {[%clk 0:01:17.8]} 41. Ra7 {[%clk 0:00:32.7]} 41... Rb2
{[%clk 0:00:57.5]} 42. Rxa3 {[%clk 0:00:32]} 42... Rxb4 {[%clk 0:00:58.3]} 43.
Ra5 {[%clk 0:00:33.5]} 43... Rh4 {[%clk 0:00:56.7]} 44. Kg3 {[%clk 0:00:34.7]}
44... Re4 {[%clk 0:00:57.2]} 45. Kf3 {[%clk 0:00:33.3]} 45... Rh4 {[%clk
0:00:58.1]} 46. Ra2 {[%clk 0:00:34.4]} 46... Ke7 {[%clk 0:00:55.6]} 47. Kg3
{[%clk 0:00:32.6]} 47... Rb4 {[%clk 0:00:54.7]} 48. Ra6 {[%clk 0:00:27.5]} 48...
Re4 {[%clk 0:00:50.3]} 49. Kf3 {[%clk 0:00:28.9]} 49... Rxe5 {[%clk 0:00:51]}
50. h4 {[%clk 0:00:30.1]} 50... Rb5 {[%clk 0:00:50.9]} 51. Kf4 {[%clk
0:00:30.9]} 51... Rb4+ {[%clk 0:00:51.3]} 52. e4 {[%clk 0:00:32]} 52... Rb1
{[%clk 0:00:49.5]} 53. Ra5 {[%clk 0:00:32.6]} 53... Rf1+ {[%clk 0:00:49.3]} 54.
Ke5 {[%clk 0:00:32.1]} 54... Rh1 {[%clk 0:00:46.8]} 55. Ra7+ {[%clk 0:00:33]}
55... Kf8 {[%clk 0:00:47.7]} 56. Kf6 {[%clk 0:00:34.3]} 56... Rf1+ {[%clk
0:00:48.5]} 57. Ke5 {[%clk 0:00:35.6]} 57... Kg7 {[%clk 0:00:49.1]} 58. Kd6
{[%clk 0:00:33.6]} 58... Rf4 {[%clk 0:00:48.6]} 59. e5 {[%clk 0:00:34.4]} 59...
Rd4+ {[%clk 0:00:45]} 60. Kc5 {[%clk 0:00:35.3]} 60... Re4 {[%clk 0:00:46]} 61.
Kd5 {[%clk 0:00:36.7]} 61... Re1 {[%clk 0:00:44.5]} 62. Kd6 {[%clk 0:00:31.4]}
62... Rd1+ {[%clk 0:00:43.7]} 63. Kc5 {[%clk 0:00:32.6]} 63... Kf8 {[%clk
0:00:42.3]} 64. Rb7 {[%clk 0:00:30.2]} 64... Rh1 {[%clk 0:00:40.1]} 65. Rb8+
{[%clk 0:00:29.7]} 65... Ke7 {[%clk 0:00:38.8]} 66. Kd5 {[%clk 0:00:26.1]} 66...
Rxh4 {[%clk 0:00:38]} 67. Rb7+ {[%clk 0:00:27.2]} 67... Kf8 {[%clk 0:00:38.1]}
68. e6 {[%clk 0:00:28.7]} 68... fxe6+ {[%clk 0:00:36.8]} 69. Kxe6 {[%clk
0:00:30.6]} 69... Re4+ {[%clk 0:00:37.1]} 70. Kf6 {[%clk 0:00:29.9]} 70... Rf4+
{[%clk 0:00:38]} 71. Ke6 {[%clk 0:00:30.7]} 71... Kg8 {[%clk 0:00:35.8]} 72.
Rb8+ {[%clk 0:00:30.6]} 72... Rf8 {[%clk 0:00:36.3]} 73. Rb5 {[%clk 0:00:32]}
73... Re8+ {[%clk 0:00:34]} 74. Kf6 {[%clk 0:00:32]} 74... Ra8 {[%clk
0:00:34.2]} 75. Rb6 {[%clk 0:00:32.5]} 75... Rf8+ {[%clk 0:00:34]} 76. Ke6
{[%clk 0:00:33.3]} 76... Rf7 {[%clk 0:00:33.9]} 77. Rb8+ {[%clk 0:00:33.6]}
77... Kg7 {[%clk 0:00:34.8]} 78. Rb5 {[%clk 0:00:34.3]} 78... Ra7 {[%clk
0:00:34.5]} 79. Ke5 {[%clk 0:00:31]} 79... Rf7 {[%clk 0:00:31.2]} 80. Ke6 {[%clk
0:00:31.6]} 80... Rc7 {[%clk 0:00:24.8]} 81. Ke5 {[%clk 0:00:30.2]} 81... Rf7
{[%clk 0:00:23.9]} 82. Ke6 {[%clk 0:00:31.1]} 1/2-1/2

[Event "*** Titled Tuesday 3|2 Blitz"]
[Site "Chess.com"]
[Date "2017.05.02"]
[Round "5"]
[White "Rodalquilar"]
[Black "RitvarsReimanis"]
[Result "0-1"]
[WhiteElo "2528"]
[BlackElo "2443"]
[TimeControl "180+2"]
[EndTime "14:08:09 PDT"]
[Termination "RitvarsReimanis won on time"]

1. d4 {[%clk 0:03:02]} 1... Nf6 {[%clk 0:03:00.9]} 2. Bf4 {[%clk 0:03:03.1]}
2... e6 {[%clk 0:03:02.1]} 3. e3 {[%clk 0:03:04.5]} 3... d5 {[%clk 0:03:03.5]}
4. Nd2 {[%clk 0:03:04.1]} 4... c5 {[%clk 0:03:04.7]} 5. c3 {[%clk 0:03:05]} 5...
Nc6 {[%clk 0:03:05.8]} 6. Ngf3 {[%clk 0:03:06.2]} 6... Be7 {[%clk 0:03:06.9]} 7.
Ne5 {[%clk 0:03:05.7]} 7... O-O {[%clk 0:03:07.1]} 8. Bd3 {[%clk 0:03:06.4]}
8... Bd7 {[%clk 0:03:06.7]} 9. Qf3 {[%clk 0:03:07]} 9... Rc8 {[%clk 0:03:01.9]}
10. Qh3 {[%clk 0:03:06]} 10... g6 {[%clk 0:02:47.4]} 11. Qf3 {[%clk 0:03:06.6]}
11... cxd4 {[%clk 0:02:44.2]} 12. exd4 {[%clk 0:03:07.4]} 12... Nxe5 {[%clk
0:02:43.9]} 13. Bxe5 {[%clk 0:03:06.4]} 13... Ne8 {[%clk 0:02:36.6]} 14. O-O
{[%clk 0:02:56]} 14... Ng7 {[%clk 0:02:26.1]} 15. Rfe1 {[%clk 0:02:55]} 15...
Qb6 {[%clk 0:02:20.9]} 16. Rab1 {[%clk 0:02:53.7]} 16... Bb5 {[%clk 0:02:08]}
17. Bc2 {[%clk 0:02:54.7]} 17... Ba6 {[%clk 0:01:53.2]} 18. Qe3 {[%clk
0:02:37.7]} 18... Rfe8 {[%clk 0:01:48.5]} 19. Qh6 {[%clk 0:02:31.4]} 19... Bf8
{[%clk 0:01:45.3]} 20. Qh4 {[%clk 0:02:31.3]} 20... Qd8 {[%clk 0:01:42.4]} 21.
Qh3 {[%clk 0:02:25.3]} 21... Qg5 {[%clk 0:01:40.3]} 22. Nf3 {[%clk 0:02:25.3]}
22... Qh5 {[%clk 0:01:40]} 23. Qg3 {[%clk 0:02:23]} 23... Nf5 {[%clk 0:01:39]}
24. Qg5 {[%clk 0:01:49.3]} 24... Qxg5 {[%clk 0:01:35.4]} 25. Nxg5 {[%clk
0:01:51.2]} 25... Nd6 {[%clk 0:01:29.5]} 26. Ba4 {[%clk 0:01:32.9]} 26... b5
{[%clk 0:01:30]} 27. Bb3 {[%clk 0:01:26.1]} 27... Nc4 {[%clk 0:01:28]} 28. Bf4
{[%clk 0:01:22.3]} 28... b4 {[%clk 0:01:12.7]} 29. Ba4 {[%clk 0:01:16.9]} 29...
Red8 {[%clk 0:01:12.6]} 30. cxb4 {[%clk 0:00:36.1]} 30... Bxb4 {[%clk
0:01:09.3]} 31. Red1 {[%clk 0:00:37.6]} 31... Nb6 {[%clk 0:01:00.6]} 32. Bb3
{[%clk 0:00:37]} 32... Be2 {[%clk 0:01:01.7]} 33. Rdc1 {[%clk 0:00:36.1]} 33...
h6 {[%clk 0:01:01.3]} 34. Nf3 {[%clk 0:00:31.8]} 34... g5 {[%clk 0:00:51.8]} 35.
Bd2 {[%clk 0:00:20.4]} 35... Bd6 {[%clk 0:00:44.9]} 36. Ba5 {[%clk 0:00:19.7]}
36... Bd3 {[%clk 0:00:39.2]} 37. Ra1 {[%clk 0:00:20.2]} 37... Bf4 {[%clk
0:00:40.2]} 38. Re1 {[%clk 0:00:15.7]} 38... Bc4 {[%clk 0:00:30.4]} 39. Bd1
{[%clk 0:00:13.5]} 39... Bd3 {[%clk 0:00:26.5]} 40. Bb3 {[%clk 0:00:13.9]} 40...
Bc2 {[%clk 0:00:26.8]} 41. g3 {[%clk 0:00:11.9]} 41... Bd6 {[%clk 0:00:24.5]}
42. Nd2 {[%clk 0:00:10.7]} 42... Rd7 {[%clk 0:00:19.5]} 43. Rec1 {[%clk
0:00:11.3]} 43... Rdc7 {[%clk 0:00:20.8]} 44. Re1 {[%clk 0:00:07.3]} 44... Kg7
{[%clk 0:00:18.8]} 45. Kg2 {[%clk 0:00:06.5]} 45... Rc6 {[%clk 0:00:20]} 46. Bc3
{[%clk 0:00:06.6]} 46... Bg6 {[%clk 0:00:18.1]} 47. f3 {[%clk 0:00:06.5]} 47...
Ba3 {[%clk 0:00:14.8]} 48. Rad1 {[%clk 0:00:04.6]} 48... Be7 {[%clk 0:00:11.9]}
49. Nf1 {[%clk 0:00:05.6]} 49... Bf6 {[%clk 0:00:13.2]} 50. Ne3 {[%clk
0:00:06.1]} 50... R6c7 {[%clk 0:00:11.5]} 51. Ng4 {[%clk 0:00:07.4]} 51... Nc4
{[%clk 0:00:10]} 52. Nxf6 {[%clk 0:00:06.3]} 52... Kxf6 {[%clk 0:00:11.9]} 53.
h4 {[%clk 0:00:07.7]} 53... Rb8 {[%clk 0:00:08.6]} 54. hxg5+ {[%clk 0:00:08.2]}
54... hxg5 {[%clk 0:00:10.5]} 55. Kf2 {[%clk 0:00:06.6]} 55... a5 {[%clk
0:00:11.3]} 56. Re2 {[%clk 0:00:06.4]} 56... Rb5 {[%clk 0:00:09.5]} 57. Ba4
{[%clk 0:00:07.5]} 57... Rbb7 {[%clk 0:00:10.1]} 58. Bb3 {[%clk 0:00:08.8]}
58... Ra7 {[%clk 0:00:11.6]} 59. Ba4 {[%clk 0:00:09.7]} 59... Nb6 {[%clk
0:00:12.1]} 60. Bb5 {[%clk 0:00:10.4]} 60... a4 {[%clk 0:00:12.9]} 61. Bb4
{[%clk 0:00:08]} 61... Nc4 {[%clk 0:00:12.4]} 62. Bc5 {[%clk 0:00:09.2]} 62...
Rab7 {[%clk 0:00:09.3]} 63. Bxa4 {[%clk 0:00:10.3]} 63... Nxb2 {[%clk 0:00:09]}
64. Bd6 {[%clk 0:00:04.7]} 64... Nxd1+ {[%clk 0:00:05.2]} 65. Bxd1 {[%clk
0:00:06.6]} 65... Rc1 {[%clk 0:00:05]} 66. Bb3 {[%clk 0:00:07.1]} 66... Kg7
{[%clk 0:00:03.6]} 67. Be5+ {[%clk 0:00:07]} 67... f6 {[%clk 0:00:05]} 68. Bd6
{[%clk 0:00:08.4]} 68... Bf7 {[%clk 0:00:06.4]} 69. Ba3 {[%clk 0:00:09.2]} 69...
Rc3 {[%clk 0:00:07]} 70. Bb2 {[%clk 0:00:09.9]} 70... Rcxb3 {[%clk 0:00:07.9]}
71. axb3 {[%clk 0:00:11.1]} 71... Rxb3 {[%clk 0:00:09.8]} 72. Bc1 {[%clk
0:00:10.8]} 72... Kg6 {[%clk 0:00:10.7]} 73. Rc2 {[%clk 0:00:10.7]} 73... f5
{[%clk 0:00:11.3]} 74. Rc6 {[%clk 0:00:11]} 74... Rd3 {[%clk 0:00:11.8]} 75. Be3
{[%clk 0:00:09.5]} 75... Kf6 {[%clk 0:00:13.1]} 76. Ke2 {[%clk 0:00:10.7]} 76...
Ra3 {[%clk 0:00:13.5]} 77. Rc7 {[%clk 0:00:12]} 77... Bh5 {[%clk 0:00:13.5]} 78.
Rc2 {[%clk 0:00:04.8]} 78... Be8 {[%clk 0:00:13.2]} 79. Kd2 {[%clk 0:00:05.2]}
79... Bb5 {[%clk 0:00:11.9]} 80. Rc8 {[%clk 0:00:03.7]} 80... Rd3+ {[%clk
0:00:12.2]} 81. Ke2 {[%clk 0:00:05.1]} 81... Rc3+ {[%clk 0:00:12.5]} 82. Kd2
{[%clk 0:00:05.1]} 82... Rxc8 {[%clk 0:00:13.2]} 0-1

[Event "*** Titled Tuesday 3|2 Blitz"]
[Site "Chess.com"]
[Date "2017.05.02"]
[Round "6"]
[White "eldur16"]
[Black "GamayevOleg"]
[Result "1-0"]
[WhiteElo "2455"]
[BlackElo "2412"]
[TimeControl "180+2"]
[EndTime "14:14:00 PDT"]
[Termination "eldur16 won by resignation"]

1. e4 {[%clk 0:03:02]} 1... d6 {[%clk 0:02:58.5]} 2. d4 {[%clk 0:03:02.1]} 2...
Nf6 {[%clk 0:02:59.9]} 3. Nc3 {[%clk 0:03:03]} 3... e5 {[%clk 0:02:59.9]} 4.
dxe5 {[%clk 0:03:02.4]} 4... dxe5 {[%clk 0:02:56.7]} 5. Qxd8+ {[%clk 0:03:02.9]}
5... Kxd8 {[%clk 0:02:48.2]} 6. Bc4 {[%clk 0:03:03.2]} 6... Be6 {[%clk
0:02:46.3]} 7. Bxe6 {[%clk 0:03:03.3]} 7... fxe6 {[%clk 0:02:48.2]} 8. Be3
{[%clk 0:03:01.3]} 8... Bd6 {[%clk 0:02:49.3]} 9. f3 {[%clk 0:03:01.3]} 9... Nc6
{[%clk 0:02:49.6]} 10. O-O-O {[%clk 0:03:01.2]} 10... Ke7 {[%clk 0:02:50.7]} 11.
Nge2 {[%clk 0:03:02]} 11... Rhb8 {[%clk 0:02:51]} 12. Nb5 {[%clk 0:02:59]} 12...
a6 {[%clk 0:02:51.9]} 13. Nxd6 {[%clk 0:02:59.4]} 13... cxd6 {[%clk 0:02:53.8]}
14. g4 {[%clk 0:02:57.4]} 14... b5 {[%clk 0:02:53.3]} 15. Ng3 {[%clk 0:02:50.6]}
15... Rc8 {[%clk 0:02:53.7]} 16. Kb1 {[%clk 0:02:50.5]} 16... Na5 {[%clk
0:02:50.5]} 17. b3 {[%clk 0:02:47.1]} 17... Rc6 {[%clk 0:02:45.8]} 18. Ne2
{[%clk 0:02:37.5]} 18... Rac8 {[%clk 0:02:44.2]} 19. c3 {[%clk 0:02:35.2]} 19...
Nb7 {[%clk 0:02:25.3]} 20. Kb2 {[%clk 0:02:26.8]} 20... Nd7 {[%clk 0:02:23.4]}
21. f4 {[%clk 0:02:18.4]} 21... exf4 {[%clk 0:02:20.3]} 22. Bxf4 {[%clk
0:02:18.9]} 22... e5 {[%clk 0:02:06.3]} 23. Be3 {[%clk 0:02:13.2]} 23... Ndc5
{[%clk 0:02:06.4]} 24. Ng3 {[%clk 0:02:12.9]} 24... Ke6 {[%clk 0:01:52.9]} 25.
Rhf1 {[%clk 0:02:08.9]} 25... Nd7 {[%clk 0:01:45.4]} 26. Nf5 {[%clk 0:02:03.9]}
26... g6 {[%clk 0:01:37.8]} 27. Ng7+ {[%clk 0:02:02]} 27... Ke7 {[%clk
0:01:38.8]} 28. Bg5+ {[%clk 0:02:01.9]} 1-0